bitfinex/quotes_BTCUSD_20250406
["timestamp","ask_amount","ask_price","bid_price","bid_amount"]
[1743955600423,0.01922406,82489.0,82488.0,0.14856928]
[1743955600622,0.0034002,82489.0,82488.0,0.00900928]
[1743955600825,0.01924922,82489.0,82488.0,0.00900928]
[1743955601045,0.01924922,82489.0,82485.0,0.309046]
[1743955601595,0.01924922,82489.0,82486.0,0.169724]
[1743955602496,0.01924922,82489.0,82485.0,0.14834254]
[1743955602497,0.03137122,82489.0,82485.0,0.14834254]
[1743955602973,0.01924922,82489.0,82485.0,0.33019154]
[1743955603574,0.01924922,82489.0,82485.0,0.19087154]
[1743955604011,0.169721,82488.0,82485.0,0.00902254]
[1743955604367,0.01586083,82487.0,82484.0,0.181851]
[1743955604998,0.012123,82486.0,82478.0,0.181865]
[1743955605197,0.18185,82485.0,82480.0,0.169737]
[1743955605405,0.217535,82482.0,82478.0,0.01218481]
[1743955605767,0.0478,82482.0,82478.0,0.18192581]
[1743955605991,0.01583835,82481.0,82478.0,0.18192581]
[1743955606223,0.01583835,82481.0,82480.0,0.169738]
[1743955608459,0.01583835,82481.0,82480.0,0.1790332]
[1743955609795,0.01583835,82481.0,82480.0,0.0092952]
[1743955609974,0.02796235,82481.0,82480.0,0.0092952]
[1743955610138,0.02796235,82481.0,82478.0,6.081e-05]
[1743955610341,0.19769935,82481.0,82478.0,6.081e-05]
[1743955610543,0.02796235,82481.0,82478.0,6.081e-05]
[1743955610743,0.01583835,82481.0,82478.0,6.081e-05]
[1743955612049,0.18557535,82481.0,82478.0,6.081e-05]
[1743955612184,0.01583835,82481.0,82478.0,0.00927188]
[1743955612380,0.01583835,82481.0,82478.0,6.081e-05]
[1743955612611,0.18557535,82481.0,82478.0,6.081e-05]
[1743955612821,0.01583835,82481.0,82478.0,6.081e-05]
[1743955613982,0.18557535,82481.0,82478.0,6.081e-05]
[1743955614184,0.19769935,82481.0,82478.0,6.081e-05]
[1743955614404,0.01583835,82481.0,82478.0,0.18192481]
[1743955616875,0.01583835,82481.0,82479.0,0.169738]
[1743955617066,0.01583835,82481.0,82480.0,0.012124]
[1743955617387,0.01583906,82481.0,82480.0,0.18186]
[1743955617579,0.18185,82485.0,82480.0,0.18186]
[1743955617809,0.01583906,82481.0,82480.0,0.18186]
[1743955618031,0.18185,82485.0,82480.0,0.18186]
[1743955618259,0.01583906,82481.0,82480.0,0.18186]
[1743955618434,0.18185,82485.0,82480.0,0.18186]
[1743955618636,0.01583906,82481.0,82480.0,0.18186]
[1743955618813,0.18185,82485.0,82480.0,0.18186]
[1743955619024,0.01583906,82481.0,82480.0,0.18186]
[1743955619194,0.18185,82485.0,82480.0,0.18186]
[1743955619395,0.01583906,82481.0,82480.0,0.18186]
[1743955619637,0.18185,82485.0,82480.0,0.18186]
[1743955619838,0.01583906,82481.0,82480.0,0.18186]
[1743955620014,0.18185,82485.0,82480.0,0.18186]
[1743955620222,0.01583906,82481.0,82480.0,0.18186]
[1743955620421,0.18185,82485.0,82480.0,0.18186]
[1743955620623,0.01583906,82481.0,82480.0,0.18186]
[1743955620821,0.18185,82485.0,82480.0,0.18186]
[1743955621053,0.0494,82486.0,82482.0,0.169733]
[1743955621642,0.219126,82486.0,82482.0,0.169733]
[1743955621886,0.0494,82486.0,82482.0,0.169734]
[1743955622093,0.219127,82486.0,82482.0,0.169734]
[1743955622322,0.23125,82486.0,82481.0,0.012124]
[1743955623688,0.169728,82485.0,82481.0,0.012124]
[1743955624438,0.23125,82486.0,82481.0,0.181859]
[1743955625349,0.181852,82485.0,82480.0,0.012124]
[1743955625602,0.169732,82483.0,82478.0,0.19112535]
[1743955625839,0.181864,82479.0,82478.0,0.00926135]
[1743955629883,0.618364,82479.0,82478.0,0.00022661]
[1743955632890,0.63418275,82479.0,82478.0,0.00022661]
[1743955634465,0.86418275,82479.0,82478.0,0.00022661]
[1743955634603,0.63418275,82479.0,82478.0,0.00022661]
[1743955636305,0.53768275,82479.0,82478.0,0.00022661]
[1743955640641,0.35581875,82479.0,82478.0,0.00022661]
[1743955640878,0.35581875,82479.0,82478.0,0.18209261]
[1743955641081,0.01581875,82479.0,82478.0,0.48821558]
[1743955641490,0.0037318,82489.0,82487.0,0.169722]
[1743955641958,0.0164428,82488.0,82487.0,0.169722]
[1743955642360,0.0164428,82488.0,82486.0,0.012123]
[1743955643851,0.0164428,82488.0,82485.0,0.169727]
[1743955644070,0.0037318,82489.0,82485.0,0.18185]
[1743955644273,0.0037318,82489.0,82486.0,0.181847]
[1743955644441,0.34,82485.0,82483.0,0.13756]
[1743955644816,0.01645854,82484.0,82483.0,0.319413]
[1743955646537,0.3437318,82489.0,82484.0,0.181851]
[1743955647618,0.34,82487.0,82483.0,0.13756]
[1743955647796,0.012123,82485.0,82483.0,0.13756]
[1743955647952,0.34,82485.0,82483.0,0.13756]
[1743955648308,0.34,82485.0,82482.0,0.169732]
[1743955648501,0.01645854,82484.0,82482.0,0.169732]
[1743955648867,0.01645854,82484.0,82482.0,0.181855]
[1743955649547,0.34,82486.0,82482.0,0.181855]
[1743955649850,0.01646248,82485.0,82482.0,0.181855]
[1743955650575,0.01646248,82485.0,82484.0,0.012123]
[1743955650767,0.01646248,82485.0,82484.0,0.18152597]
[1743955651126,0.0037318,82489.0,82488.0,0.012122]
[1743955651385,0.0037318,82489.0,82488.0,0.35367013]
[1743955651548,0.0037318,82489.0,82488.0,0.39794597]
[1743955653204,0.0037318,82489.0,82488.0,0.44218597]
[1743955653886,0.01826355,82489.0,82485.0,0.18185]
[1743955654119,0.01826355,82489.0,82476.0,0.012124]
[1743955654120,0.181856,82483.0,82476.0,0.012124]
[1743955654365,0.012123,82486.0,82480.0,0.012124]
[1743955654598,0.0145256,82482.0,82480.0,0.012124]
[1743955654834,0.012123,82486.0,82480.0,0.012124]
[1743955655072,0.01451123,82481.0,82480.0,0.18186]
[1743955655305,0.169729,82485.0,82484.0,0.181852]
[1743955655306,0.02264566,82485.0,82484.0,0.181852]
[1743955655558,0.02264566,82488.0,82486.0,0.169725]
[1743955655790,0.02264566,82488.0,82487.0,0.012123]
[1743955655985,0.0037318,82489.0,82488.0,0.181843]
[1743955656337,0.03769856,82489.0,82488.0,0.181843]
[1743955660008,0.03769856,82489.0,82488.0,0.18426743]
[1743955660215,0.03769856,82489.0,82488.0,0.181843]
[1743955660670,0.0037318,82489.0,82488.0,0.181843]
[1743955662315,0.0037318,82489.0,82488.0,0.30474597]
[1743955668381,0.0037318,82489.0,82488.0,0.35404597]
[1743955677882,0.0037318,82489.0,82488.0,0.77224597]
[1743955678017,0.0037318,82489.0,82488.0,0.81814597]
[1743955682854,0.0037318,82489.0,82488.0,0.81831177]
[1743955683993,0.0037318,82489.0,82488.0,0.81331177]
[1743955684169,0.0037318,82489.0,82488.0,0.85479177]
[1743955688343,0.0037318,82489.0,82488.0,0.71811177]
[1743955688528,0.0037318,82489.0,82488.0,0.85479177]
[1743955689521,0.0037318,82489.0,82488.0,0.71811177]
[1743955689721,0.0037318,82489.0,82488.0,0.85479177]
[1743955691455,0.0037318,82489.0,82488.0,0.71811177]
[1743955691657,0.0037318,82489.0,82488.0,0.85479177]
[1743955692624,0.0037318,82489.0,82488.0,0.71811177]
[1743955692828,0.0037318,82489.0,82488.0,0.85479177]
[1743955693299,0.0037318,82489.0,82488.0,0.67294877]
[1743955693579,0.0531318,82489.0,82488.0,0.5500458]
[1743955693729,0.0652538,82489.0,82488.0,0.5500458]
[1743955694164,0.07985904,82489.0,82488.0,0.4133658]
[1743955694559,0.46565904,82489.0,82488.0,0.0001658]
[1743955697267,0.52185,82485.0,82484.0,0.0001658]
[1743955697502,0.58350485,82479.0,82467.0,0.08]
[1743955697886,0.58350485,82479.0,82457.0,0.00909507]
[1743955697887,0.72124435,82479.0,82457.0,0.00909507]
[1743955701673,0.616408,82459.0,82450.0,0.02]
[1743955701855,0.73911097,82459.0,82458.0,0.00022663]
[1743955702052,0.76844824,82459.0,82458.0,0.00022663]
[1743955702912,0.78075409,82459.0,82458.0,0.00022663]
[1743955703839,0.63096585,82451.0,82450.0,0.02]
[1743955703973,0.78734028,82451.0,82450.0,4.9e-07]
[1743955704180,0.80201596,82451.0,82450.0,4.9e-07]
[1743955704417,0.83800224,82451.0,82450.0,4.9e-07]
[1743955704643,0.82453979,82451.0,82450.0,4.9e-07]
[1743955705185,0.86052607,82451.0,82450.0,4.9e-07]
[1743955705388,0.83580092,82451.0,82450.0,4.9e-07]
[1743955705841,0.80232946,82451.0,82450.0,4.9e-07]
[1743955706416,0.93916946,82451.0,82450.0,4.9e-07]
[1743955706821,0.80232946,82451.0,82450.0,4.9e-07]
[1743955707292,0.80221362,82451.0,82450.0,4.9e-07]
[1743955707496,0.80221362,82451.0,82450.0,0.00016629]
[1743955711507,0.76842866,82451.0,82450.0,0.00016629]
[1743955712318,1.01842866,82451.0,82450.0,0.00016629]
[1743955712550,0.76842866,82451.0,82450.0,0.00016629]
[1743955713953,0.77966241,82451.0,82450.0,0.00016629]
[1743955714568,0.83560263,82451.0,82450.0,0.00016629]
[1743955714768,0.83560263,82451.0,82429.0,0.0001659]
[1743955714769,0.521947,82441.0,82429.0,0.0001659]
[1743955715079,0.76670583,82441.0,82429.0,0.0001659]
[1743955715273,0.97332357,82441.0,82429.0,0.0001659]
[1743955715613,0.99579233,82441.0,82429.0,0.0001659]
[1743955716023,1.00702608,82441.0,82429.0,0.0001659]
[1743955716769,0.9710398,82441.0,82429.0,0.0001659]
[1743955717166,0.80040834,82441.0,82429.0,0.0001659]
[1743955717725,0.80040834,82441.0,82429.0,0.1821379]
[1743955717928,0.80040834,82441.0,82429.0,0.0122969]
[1743955718125,0.80040834,82441.0,82429.0,0.0001659]
[1743955720754,0.80040834,82441.0,82432.0,0.012131]
[1743955720755,0.57006452,82441.0,82432.0,0.012131]
[1743955720950,0.57006452,82441.0,82429.0,0.0001659]
[1743955721314,0.57006452,82441.0,82429.0,0.1700089]
[1743955721514,0.57006452,82441.0,82429.0,0.0001659]
[1743955725162,0.70750834,82441.0,82429.0,0.0001659]
[1743955730837,0.68503958,82441.0,82429.0,0.0001659]
[1743955731733,0.54759576,82441.0,82429.0,0.0001659]
[1743955731935,0.54759576,82441.0,82430.0,0.18197]
[1743955732271,0.54759576,82441.0,82432.0,0.181966]
[1743955732272,0.53636201,82441.0,82432.0,0.181966]
[1743955732615,0.53636201,82441.0,82432.0,0.169835]
[1743955732823,0.53636201,82441.0,82430.0,0.181971]
[1743955733029,0.53636201,82441.0,82429.0,0.0001659]
[1743955733367,0.53636201,82441.0,82429.0,0.1700069]
[1743955734060,0.53636201,82441.0,82429.0,0.0001659]
[1743955740270,0.35441501,82441.0,82431.0,0.169838]
[1743955740455,0.36654401,82441.0,82436.0,0.01213]
[1743955740655,0.36654401,82441.0,82429.0,0.0001659]
[1743955741256,0.55018783,82441.0,82429.0,0.0001659]
[1743955742413,0.36654401,82441.0,82430.0,0.012131]
[1743955742628,0.36654401,82441.0,82430.0,0.18197]
[1743955743192,0.36654401,82441.0,82429.0,0.1700079]
[1743955743193,0.36654401,82441.0,82429.0,0.0001659]
[1743955744068,0.55018783,82441.0,82429.0,0.0001659]
[1743955745381,0.59948783,82441.0,82429.0,0.0001659]
[1743955746106,0.62220313,82441.0,82429.0,0.0001659]
[1743955746311,0.62220313,82441.0,82440.0,8e-07]
[1743955746513,0.69166087,82441.0,82440.0,8e-07]
[1743955746714,0.568172,82430.0,82429.0,0.0001659]
[1743955747000,0.69107497,82430.0,82429.0,0.0001659]
[1743955747203,0.71995444,82430.0,82429.0,0.0001659]
[1743955747413,0.74266974,82430.0,82429.0,0.0001659]
[1743955748160,0.75402742,82430.0,82429.0,0.0001659]
[1743955750060,0.75390126,82430.0,82429.0,0.0001659]
[1743955750487,0.69316041,82430.0,82429.0,0.0001659]
[1743955750715,0.68498596,82430.0,82429.0,0.0001659]
[1743955751988,0.70768466,82430.0,82429.0,0.0001659]
[1743955757261,0.69314381,82430.0,82429.0,0.0001659]
[1743955757475,0.388395,82430.0,82429.0,0.0001659]
[1743955757650,0.400526,82430.0,82429.0,0.0001659]
[1743955757995,0.3778273,82430.0,82429.0,0.0001659]
[1743955758241,0.3656963,82430.0,82429.0,0.0001659]
[1743955758642,0.36568273,82430.0,82429.0,0.0001659]
[1743955758997,0.54765473,82430.0,82429.0,0.0001659]
[1743955760086,0.82765473,82430.0,82429.0,0.0001659]
[1743955760310,0.54765473,82430.0,82429.0,0.0001659]
[1743955760539,0.53631062,82430.0,82429.0,0.0001659]
[1743955771075,0.53664242,82430.0,82429.0,0.0001659]
[1743955775854,0.72278624,82430.0,82429.0,0.0001659]
[1743955784347,0.67408624,82430.0,82429.0,0.0001659]
[1743955791195,0.53664242,82430.0,82429.0,0.0001659]
[1743955795341,0.35467042,82430.0,82429.0,0.0001659]
[1743955795500,0.53664242,82430.0,82429.0,0.0001659]
[1743955800713,0.35467042,82430.0,82429.0,0.0482659]
[1743955801728,0.35467042,82430.0,82429.0,0.0945659]
[1743955803527,0.36680142,82430.0,82429.0,0.0001659]
[1743955805100,0.50424524,82430.0,82429.0,0.0001659]
[1743955815530,0.74424524,82430.0,82429.0,0.0001659]
[1743955815714,0.50424524,82430.0,82429.0,0.0001659]
[1743955822488,0.55024524,82430.0,82429.0,0.0001659]
[1743955831832,0.55647043,82430.0,82429.0,0.0001659]
[1743955835540,0.55647043,82430.0,82429.0,9e-07]
[1743955836561,0.60247043,82430.0,82429.0,9e-07]
[1743955836767,0.522012,82412.0,82411.0,0.004]
[1743955836978,0.6800207,82412.0,82411.0,0.004]
[1743955837181,0.9200207,82412.0,82411.0,0.004]
[1743955837385,0.6800207,82412.0,82411.0,0.004]
[1743955838325,0.69205573,82412.0,82411.0,0.00404543]
[1743955839314,0.67751488,82412.0,82411.0,0.00404543]
[1743955845393,0.67751488,82412.0,82411.0,0.00421133]
[1743955847855,0.37259991,82412.0,82411.0,0.04971133]
[1743955848002,0.03259991,82412.0,82411.0,0.04971133]
[1743955848415,0.37259991,82412.0,82411.0,0.04971133]
[1743955849674,0.38473391,82412.0,82411.0,0.04971133]
[1743955851857,0.02056488,82412.0,82411.0,0.10924533]
[1743955852278,0.509865,82419.0,82413.0,0.012134]
[1743955852453,0.34,82419.0,82416.0,0.169869]
[1743955852613,0.02044562,82418.0,82417.0,0.0486]
[1743955853346,0.03257862,82418.0,82417.0,0.0486]
[1743955855681,0.02044562,82418.0,82417.0,0.0486]
[1743955856027,0.34,82421.0,82418.0,0.169865]
[1743955856228,0.02045185,82420.0,82418.0,0.181998]
[1743955856434,0.02045185,82420.0,82417.0,0.060733]
[1743955856631,0.02045185,82420.0,82417.0,0.230599]
[1743955857095,0.02045185,82420.0,82417.0,0.0486]
[1743955860925,0.03283249,82420.0,82417.0,0.0486]
[1743955861183,0.02045185,82420.0,82417.0,0.0486]
[1743955861492,0.02045185,82420.0,82419.0,0.231696]
[1743955862045,0.34,82426.0,82424.0,0.169852]
[1743955862278,0.34,82426.0,82424.0,0.181984]
[1743955862527,0.01192611,82428.0,82426.0,0.169849]
[1743955862981,0.01192611,82428.0,82427.0,0.061831]
[1743955863391,0.0003318,82429.0,82428.0,0.229576]
[1743955863592,0.0003318,82429.0,82428.0,0.279276]
[1743955865193,0.0003318,82429.0,82424.0,0.181984]
[1743955865194,0.181995,82420.0,82414.0,0.012133]
[1743955865361,0.012132,82423.0,82416.0,0.012133]
[1743955865570,0.012132,82423.0,82416.0,0.169869]
[1743955865765,0.169857,82422.0,82416.0,0.182002]
[1743955865964,0.012132,82423.0,82418.0,0.169865]
[1743955866236,0.181982,82426.0,82419.0,0.181995]
[1743955866378,0.169855,82423.0,82419.0,0.012133]
[1743955866582,0.181992,82421.0,82416.0,0.182]
[1743955866811,0.012132,82422.0,82417.0,0.318838]
[1743955867421,0.181991,82422.0,82417.0,0.306705]
[1743955867621,0.181977,82428.0,82423.0,0.012132]
[1743955867972,0.18198,82427.0,82421.0,0.169859]
[1743955868171,0.169851,82425.0,82421.0,0.169859]
[1743955868372,0.169851,82425.0,82420.0,0.012132]
[1743955868819,0.169851,82425.0,82420.0,0.181991]
[1743955869053,0.18198,82427.0,82422.0,0.012132]
[1743955869333,0.1701738,82430.0,82423.0,0.012132]
[1743955869537,0.0003318,82430.0,82428.0,0.012131]
[1743955869781,0.0003318,82430.0,82428.0,0.181976]
[1743955876914,0.0003318,82430.0,82428.0,0.169845]
[1743955877267,0.02097856,82429.0,82428.0,0.13692]
[1743955877676,0.02097856,82429.0,82428.0,0.149051]
[1743955882468,0.02097856,82429.0,82428.0,0.012131]
[1743955884379,0.02097856,82429.0,82428.0,0.18143397]
[1743955884604,0.0003318,82429.0,82428.0,0.18143397]
[1743955885080,0.0003318,82429.0,82428.0,0.18159987]
[1743955885876,0.0003318,82429.0,82428.0,0.1954969]
[1743955887445,0.0003318,82429.0,82428.0,0.197923]
[1743955887677,0.0003318,82429.0,82428.0,0.32082597]
[1743955887900,0.0003318,82429.0,82428.0,0.31839987]
[1743955888378,0.0003318,82429.0,82428.0,0.32763545]
[1743955893163,0.0003318,82429.0,82428.0,0.19083545]
[1743955893342,0.0003318,82429.0,82428.0,0.32763545]
[1743955899947,0.0103318,82429.0,82428.0,0.32763545]
[1743955900111,0.0003318,82429.0,82428.0,0.32763545]
[1743955901247,0.0002445,82429.0,82428.0,0.32763545]
[1743955906230,0.0002445,82429.0,82428.0,0.13230445]
[1743955906561,0.0002445,82429.0,82428.0,0.28123545]
[1743955906763,0.0123755,82429.0,82428.0,0.0001659]
[1743955906938,0.0123755,82429.0,82428.0,0.1369659]
[1743955907211,0.0123755,82429.0,82428.0,0.0001659]
[1743955907419,0.02966891,82429.0,82428.0,0.0001659]
[1743955907623,0.36966891,82429.0,82428.0,0.0001659]
[1743955907980,0.3923734,82429.0,82428.0,0.0001659]
[1743955908181,0.4380734,82429.0,82428.0,0.0001659]
[1743955908388,0.57551722,82429.0,82428.0,0.0001659]
[1743955909166,0.62191722,82429.0,82428.0,0.0001659]
[1743955909670,0.59921273,82429.0,82428.0,0.0001659]
[1743955912280,0.46176891,82429.0,82428.0,0.0001659]
[1743955925235,0.74176891,82429.0,82428.0,0.0001659]
[1743955925477,0.46176891,82429.0,82428.0,0.0001659]
[1743955926272,0.36966891,82429.0,82428.0,0.0001659]
[1743955926535,0.01753791,82429.0,82428.0,0.0001659]
[1743955926795,0.02966891,82429.0,82428.0,0.0001659]
[1743955927054,0.02955358,82429.0,82428.0,0.0001659]
[1743955929359,0.07645358,82429.0,82428.0,0.0001659]
[1743955929750,0.02955358,82429.0,82428.0,0.0001659]
[1743955944780,0.07715358,82429.0,82428.0,0.0001659]
[1743955945046,0.2145974,82429.0,82428.0,0.0001659]
[1743955945226,0.6007974,82429.0,82428.0,0.0001659]
[1743955947393,0.6007974,82429.0,82426.0,8e-07]
[1743955947394,0.46047185,82427.0,82426.0,8e-07]
[1743955947596,0.58337482,82427.0,82426.0,8e-07]
[1743955947895,0.59805195,82427.0,82426.0,8e-07]
[1743955948300,0.62075903,82427.0,82426.0,8e-07]
[1743955951290,0.75759903,82427.0,82426.0,8e-07]
[1743955951488,0.73489195,82427.0,82426.0,8e-07]
[1743955955247,0.59805195,82427.0,82426.0,8e-07]
[1743955955432,0.73489195,82427.0,82426.0,8e-07]
[1743955957121,0.25805195,82427.0,82426.0,8e-07]
[1743955957466,0.1497111,82427.0,82426.0,8e-07]
[1743955957671,0.16425195,82427.0,82426.0,8e-07]
[1743955958275,0.50425195,82427.0,82426.0,8e-07]
[1743955961400,0.012133,82416.0,82415.0,0.04661928]
[1743955961587,0.522002,82416.0,82415.0,0.04661928]
[1743955961807,0.53662072,82416.0,82415.0,0.04661928]
[1743955962011,0.53662072,82416.0,82415.0,0.04456731]
[1743955962345,0.81662072,82416.0,82415.0,0.04456731]
[1743955962552,0.53662072,82416.0,82415.0,0.04221398]
[1743955965151,0.35461872,82416.0,82415.0,0.04221398]
[1743955966863,0.34515515,82416.0,82415.0,0.04221398]
[1743955967107,0.34515515,82416.0,82415.0,0.05434698]
[1743955968233,0.34515515,82416.0,82415.0,0.04221398]
[1743955973101,0.34515515,82416.0,82415.0,0.04176774]
[1743955973642,0.34515515,82416.0,82415.0,0.04193364]
[1743955974372,0.35728815,82416.0,82415.0,0.0001659]
[1743955981105,0.34515515,82416.0,82415.0,0.0122989]
[1743955981239,0.34515515,82416.0,82415.0,0.0001659]
[1743955981431,0.34515515,82416.0,82415.0,0.0122989]
[1743955983222,0.01461872,82416.0,82415.0,0.18250187]
[1743955983428,0.01461872,82416.0,82415.0,0.1849285]
[1743955983626,0.0003318,82427.0,82426.0,0.181981]
[1743955984038,0.01503628,82427.0,82426.0,0.181981]
[1743955984211,0.0003318,82427.0,82425.0,0.169849]
[1743955984415,0.01504014,82427.0,82426.0,0.012132]
[1743955984627,0.0003318,82427.0,82426.0,0.012132]
[1743955984824,0.01504014,82427.0,82426.0,0.012132]
[1743955985092,0.0003318,82427.0,82426.0,0.012132]
[1743955985283,0.01504014,82427.0,82426.0,0.012132]
[1743955985502,0.0003318,82427.0,82426.0,0.012132]
[1743955985683,0.01504014,82427.0,82426.0,0.012132]
[1743955985891,0.0003318,82427.0,82426.0,0.012132]
[1743955986054,0.01504014,82427.0,82426.0,0.012132]
[1743955986254,0.0003318,82427.0,82426.0,0.012132]
[1743955986456,0.01504014,82427.0,82426.0,0.012132]
[1743955986682,0.0003318,82427.0,82426.0,0.012132]
[1743955986907,0.01504014,82427.0,82426.0,0.012132]
[1743955987050,0.0003318,82427.0,82426.0,0.012132]
[1743955987244,0.01504014,82427.0,82426.0,0.012132]
[1743955987440,0.2803318,82427.0,82426.0,0.012132]
[1743955987659,0.35504014,82427.0,82426.0,0.012132]
[1743956001857,0.35504014,82427.0,82426.0,0.061532]
[1743956005632,0.01504014,82427.0,82426.0,0.18443497]
[1743956007134,0.01504014,82427.0,82426.0,0.32119497]
[1743956007332,0.01504014,82427.0,82426.0,0.27179497]
[1743956007651,0.18488714,82427.0,82426.0,0.13676]
[1743956007934,0.18488714,82427.0,82422.0,0.13676]
[1743956007935,0.19701814,82427.0,82422.0,0.13676]
[1743956008196,0.181985,82424.0,82415.0,0.1821679]
[1743956008456,0.169866,82418.0,82415.0,0.0001659]
[1743956008681,0.169869,82416.0,82415.0,0.0001659]
[1743956009175,0.53680314,82416.0,82415.0,0.0001659]
[1743956010315,0.58420314,82416.0,82415.0,0.0001659]
[1743956012781,0.35480114,82416.0,82415.0,0.0122989]
[1743956013201,0.35480114,82416.0,82415.0,0.0001659]
[1743956013813,0.35480114,82416.0,82415.0,0.0122989]
[1743956017826,0.35480114,82416.0,82415.0,0.0001659]
[1743956017982,0.35480114,82416.0,82415.0,0.0122989]
[1743956018439,0.35480114,82416.0,82415.0,0.0001659]
[1743956018607,0.35480114,82416.0,82415.0,0.0122989]
[1743956021212,0.35480114,82416.0,82415.0,0.0001659]
[1743956021370,0.35480114,82416.0,82415.0,0.0122989]
[1743956024892,0.35480114,82416.0,82415.0,0.1490989]
[1743956027309,0.35513294,82416.0,82415.0,0.1490989]
[1743956028343,0.01513294,82416.0,82415.0,0.1490989]
[1743956028945,0.01513294,82416.0,82415.0,0.1369659]
[1743956029487,0.01513294,82416.0,82415.0,0.1490989]
[1743956030020,0.02726594,82416.0,82415.0,0.0001659]
[1743956032767,0.36726594,82416.0,82415.0,0.0001659]
[1743956033603,0.41396594,82416.0,82415.0,0.0001659]
[1743956035837,0.36726594,82416.0,82415.0,0.0001659]
[1743956036467,0.52500194,82416.0,82415.0,0.0001659]
[1743956036670,0.53713494,82416.0,82415.0,0.0001659]
[1743956041087,0.35513294,82416.0,82415.0,0.0001659]
[1743956041307,0.35513294,82416.0,82415.0,0.1700369]
[1743956041540,0.35513294,82416.0,82415.0,0.0001659]
[1743956044262,0.52500194,82416.0,82415.0,0.0001659]
[1743956044387,0.53713494,82416.0,82415.0,0.0001659]
[1743956051247,0.78713494,82416.0,82415.0,0.0001659]
[1743956051478,0.53713494,82416.0,82415.0,0.0001659]
[1743956061647,0.58563494,82416.0,82415.0,0.0001659]
[1743956065895,0.53713494,82416.0,82415.0,0.0001659]
[1743956066579,0.80713494,82416.0,82415.0,0.0001659]
[1743956066800,0.53713494,82416.0,82415.0,0.0001659]
[1743956084954,0.70993791,82416.0,82415.0,0.0001659]
[1743956085578,0.72447876,82416.0,82415.0,0.0001659]
[1743956085784,0.77037876,82416.0,82415.0,0.0001659]
[1743956086878,0.61903885,82402.0,82391.0,0.0001657]
[1743956087086,0.75407682,82402.0,82391.0,0.0001657]
[1743956087552,0.76919318,82402.0,82391.0,0.0001657]
[1743956093121,0.53714936,82402.0,82394.0,0.0487]
[1743956093807,0.53694936,82402.0,82394.0,0.0487]
[1743956100519,0.53694936,82402.0,82392.0,0.13676]
[1743956100919,0.53694936,82402.0,82391.0,0.0495657]
[1743956101105,0.53694936,82402.0,82391.0,0.0001657]
[1743956101723,0.53694936,82402.0,82398.0,0.0480657]
[1743956101946,0.35511636,82402.0,82398.0,0.0480657]
[1743956102151,0.35511636,82402.0,82398.0,0.2179707]
[1743956102364,0.35511636,82402.0,82398.0,0.0480657]
[1743956102564,0.36725136,82402.0,82398.0,0.0480657]
[1743956102764,0.36725136,82402.0,82398.0,0.0001657]
[1743956103718,0.53625433,82402.0,82398.0,0.0001657]
[1743956104589,0.58365433,82402.0,82398.0,0.0001657]
[1743956104815,0.59819518,82402.0,82398.0,0.0001657]
[1743956111224,0.58365433,82402.0,82398.0,0.0001657]
[1743956111436,0.35511636,82402.0,82401.0,0.1822007]
[1743956111641,0.52501436,82402.0,82401.0,0.0001657]
[1743956111876,0.53714936,82402.0,82401.0,0.0001657]
[1743956114148,0.35511636,82402.0,82401.0,0.1822007]
[1743956114707,0.53714936,82402.0,82401.0,0.0001657]
[1743956114929,0.53748116,82402.0,82401.0,0.0001657]
[1743956118336,0.67492498,82402.0,82401.0,0.0001657]
[1743956125301,0.66038413,82402.0,82401.0,0.0001657]
[1743956126671,0.67492498,82402.0,82401.0,0.0001657]
[1743956128281,0.92492498,82402.0,82401.0,0.0001657]
[1743956128459,0.67492498,82402.0,82401.0,0.0001657]
[1743956132094,0.53748116,82402.0,82401.0,0.0001657]
[1743956140091,0.66038413,82402.0,82401.0,0.0001657]
[1743956140620,0.67492498,82402.0,82401.0,0.0001657]
[1743956146104,0.53748116,82402.0,82401.0,0.0001657]
[1743956154976,0.35544816,82402.0,82401.0,0.0001657]
[1743956155176,0.35544816,82402.0,82401.0,0.0956657]
[1743956155515,0.01544816,82402.0,82401.0,0.1078007]
[1743956155878,0.01544816,82402.0,82401.0,0.0956657]
[1743956158857,0.01544816,82402.0,82401.0,0.2323857]
[1743956159113,0.02758316,82402.0,82401.0,0.0001657]
[1743956159996,0.36758316,82402.0,82401.0,0.0001657]
[1743956162370,0.36758316,82402.0,82401.0,0.0491657]
[1743956165461,0.36758316,82402.0,82401.0,0.0001657]
[1743956165902,0.60758316,82402.0,82401.0,0.0001657]
[1743956166107,0.36758316,82402.0,82401.0,0.0001657]
[1743956168188,0.52204,82399.0,82398.0,0.04638193]
[1743956168493,0.53462933,82399.0,82398.0,0.04638193]
[1743956168999,0.54651829,82399.0,82398.0,0.04638193]
[1743956172722,0.54651829,82399.0,82398.0,0.21628893]
[1743956172723,0.01258933,82399.0,82398.0,0.21628893]
[1743956172960,0.01258933,82399.0,82398.0,0.40255471]
[1743956173142,0.0003318,82402.0,82401.0,0.230835]
[1743956173277,0.0003318,82402.0,82401.0,0.35616481]
[1743956173507,0.0003318,82402.0,82401.0,0.35373797]
[1743956176110,0.0003318,82402.0,82401.0,0.39993797]
[1743956179810,0.0003318,82402.0,82401.0,0.53678387]
[1743956187512,0.0003318,82402.0,82401.0,0.40010387]
[1743956187717,0.0003318,82402.0,82401.0,1.58482387]
[1743956194196,0.0003318,82402.0,82401.0,1.58982387]
[1743956195884,0.00019696,82402.0,82401.0,1.58978387]
[1743956197346,0.00019696,82402.0,82401.0,2.01752472]
[1743956198024,0.00019696,82402.0,82401.0,2.02510476]
[1743956199626,9.6e-07,82402.0,82401.0,2.02510475]
[1743956199855,9.6e-07,82402.0,82401.0,2.0878729]
[1743956203206,9.6e-07,82402.0,82401.0,2.4278729]
[1743956203459,0.00040893,82416.0,82415.0,0.281704]
[1743956203705,0.00040893,82416.0,82415.0,0.55578782]
[1743956203956,0.00040893,82416.0,82415.0,0.56336785]
[1743956204430,0.00040893,82416.0,82415.0,0.57228663]
[1743956204966,0.00040893,82416.0,82415.0,0.43564663]
[1743956205197,0.00040893,82416.0,82415.0,0.5647066]
[1743956208727,0.00040893,82416.0,82415.0,0.41352575]
[1743956208930,0.00040893,82416.0,82415.0,0.45046575]
[1743956209117,0.00040893,82416.0,82415.0,0.31382575]
[1743956209328,0.00040893,82416.0,82415.0,0.45046575]
[1743956217381,0.00040893,82416.0,82415.0,1.49822575]
[1743956218466,0.00040893,82416.0,82415.0,1.54652575]
[1743956219535,0.00040893,82416.0,82415.0,1.40988575]
[1743956219734,0.00040893,82416.0,82415.0,1.49818575]
[1743956220376,0.00040893,82416.0,82415.0,1.36158575]
[1743956220578,0.00040893,82416.0,82415.0,1.49818575]
[1743956221170,0.00040893,82416.0,82415.0,1.04776]
[1743956221383,0.04790893,82416.0,82404.0,0.012135]